[Event "Fagernes Chess GM-Swiss 2024"]
[Site "Fagernes"]
[Date "2024.03.25"]
[Round "2"]
[White "Raja Rithvik R"]
[Black "Moksh Amit Doshi"]
[Result "1/2-1/2"]
[ECO "C88"]
[WhiteElo "2532"]
[BlackElo "2353"]
[Annotator "TA"]
[PlyCount "116"]
[EventDate "2024.03.25"]
[EventType "swiss"]
[EventCountry "NOR"]
[SourceTitle "playchess.com"]
[Source "ChessBase"]
[SourceQuality "1"]
[TimeControl "40/6000+30:2400+30"]

{[%evp 19,116,18,10,-2,0,0,-5,-3,17,15,11,0,14,0,22,0,6,23,11,17,18,24,23,0,0,0,16,0,22,27,25,25,23,23,27,32,23,23,34,20,20,23,35,35,35,35,40,40,61,61,101,101,101,101,101,101,101,101,129,129,171,171,171,171,171,8,115,0,0,0,0,0,0,0,0,0,0,0,0,0,0,0,0,0,0,0,0,0,0,0,0,0,0,0,0,0,0,0,0]} 1. e4 {[%emt 0:00:22]} e5 {[%emt 0:02:11]} 2. Nf3 {[%emt 0:00:10]} Nc6 {[%emt 0:00:06]} 3. Bb5 {[%emt 0:00:04]} a6 {[%emt 0:00:14]} 4. Ba4 {[%emt 0:00:05]} Nf6 {[%emt 0:00:07]} 5. O-O {[%emt 0:00:11]} Be7 {[%emt 0:00:07]} 6. Re1 {[%emt 0:00:12]} b5 {[%emt 0:00:08]} 7. Bb3 {[%emt 0:00:04]} O-O {[%emt 0:00:42]} 8. a4 {[%emt 0:00:07]} b4 {[%emt 0:00:19]} 9. d4 {[%emt 0:00:07]} d6 {[%emt 0:00:09]} 10. dxe5 {[%emt 0:00:05]} Nxe5 {[%emt 0:00:34]} 11. Bf4 {[%emt 0:00:06]} Ng6 {[%emt 0:07:32]} 12. Bg3 {[%emt 0:00:07]} Bb7 {[%emt 0:01:31]} 13. Nbd2 {[%emt 0:00:13]} a5 {[%emt 0:05:22]} 14. e5 {[%emt 0:12:14]} dxe5 {[%emt 0:13:42]} 15. Nxe5 {[%emt 0:00:07]} Nxe5 {[%emt 0:04:04]} 16. Bxe5 {[%emt 0:00:07]} Bc5 {[%emt 0:04:24]} 17. Nc4 {[%emt 0:11:14]} Ne4 {[%emt 0:05:53]} 18. Qxd8 {[%emt 0:00:26]} Rfxd8 {[%emt 0:01:18]} 19. Re2 {[%emt 0:00:16]} Rd7 {[%emt 0:07:37]} 20. Rae1 {[%emt 0:06:38][%cal Og1f1]} Kf8 {[%emt 0:11:22]} 21. h3 {[%emt 0:16:17]} (21. Rxe4 $2 Bxe4 22. Bg3 Bf5 $19) (21. Bf4 $5) 21... f6 {[%emt 0:06:07]} 22. Bf4 {[%emt 0:03:16]} g5 {[%emt 0:02:06] [#] ...Bxf2+ is the strong threat.} 23. Be3 {[%emt 0:04:50]} Bd5 {[%emt 0:04:31]} 24. Nd2 {[%emt 0:14:03]} Bxe3 {[%emt 0:12:02]} 25. Nxe4 {[%emt 0:01:39]} Bxe4 {[%emt 0:04:01]} 26. Rxe3 {[%emt 0:00:07]} ({Of course not} 26. fxe3 Ra6 27. c3 bxc3 $17) 26... Bd5 {[%emt 0:00:34]} 27. Bxd5 {[%emt 0:06:29]} Rxd5 $11 {[%emt 0:00:17][%mdl 4096] Endgame. KRR-KRR} 28. Re6 {[%emt 0:01:37]} Rd6 {[%emt 0:00:21]} 29. Rxd6 {[%emt 0:00:12]} cxd6 $14 {[%emt 0:00:05] KR-KR} 30. Re6 {[%emt 0:00:06][%csl LRd6,LRf6]} Rc8 {[%emt 0:00:08]} 31. Rxd6 {[%emt 0:01:01]} Rxc2 {[%emt 0:00:22]} 32. Rxf6+ {[%emt 0:00:14]} Kg7 {[%emt 0:00:09]} 33. Rf5 {[%emt 0:00:43]} h6 {[%emt 0:00:06]} 34. b3 {[%emt 0:00:54]} Rc1+ {[%emt 0:00:37]} 35. Kh2 {[%emt 0:00:03]} Rc3 {[%emt 0:00:08]} 36. Rxa5 {[%emt 0:08:40]} Rxb3 {[%emt 0:00:11] [#]} 37. h4 $1 {[%emt 0:01:50][%mdl 512]} gxh4 {[%emt 0:06:27]} (37... Rb2 38. Rb5) 38. Rb5 {[%emt 0:01:41]} h3 {[%emt 0:02:09]} 39. g3 {[%emt 0:00:20]} ({Much worse is} 39. gxh3 $6 Rb1 $11) 39... Rf3 {[%emt 0:02:48]} 40. Rxb4 {[%emt 0:01:23] And now Rg4+ would win.} ({Weaker is} 40. Kxh3 Rxf2 41. Rxb4 Ra2 $14) 40... Rxf2+ {[%emt 0:00:07]} 41. Kxh3 {[%emt 0:40:03]} Ra2 {[%emt 0:45:12]} 42. g4 {[%emt 0:02:40]} (42. Kg4 $18) 42... Ra3+ $1 $11 {[%emt 0:02:12]} 43. Kg2 {[%emt 0:01:56]} (43. Kh4 $16) 43... Kg6 {[%emt 0:01:50] The position is equal.} 44. Kf2 {[%emt 0:00:07]} h5 {[%emt 0:01:10]} 45. gxh5+ {[%emt 0:01:25]} Kxh5 {[%emt 0:00:00]} 46. Ke2 {[%emt 0:00:00]} Kg5 {[%emt 0:00:00]} 47. Kd2 {[%emt 0:00:00]} Kf6 {[%emt 0:00:00]} 48. Kc2 {[%emt 0:00:00]} Ke6 {[%emt 0:00:00]} 49. Kb2 {[%emt 0:00:00]} Rh3 {[%emt 0:00:00]} 50. Rd4 {[%emt 0:00:00]} Ke7 {[%emt 0:00:00]} 51. a5 {[%emt 0:00:00][%cal Ba4a5,Ba5a6][%mdl 32]} Rh5 {[%emt 0:00:00]} 52. Ra4 {[%emt 0:00:00]} Kd6 {[%emt 0:00:00]} 53. a6 {[%emt 0:00:00] White wants to mate with a7.} Rh8 {[%emt 0:00:00]} 54. Kc3 {[%emt 0:00:00]} (54. a7 $5 Ra8 $8 55. Kc2 $11) 54... Kc6 {[%emt 0:00:00]} 55. a7 {[%emt 0:00:00]} Ra8 {[%emt 0:00:00]} 56. Kc4 {[%emt 0:00:00]} Kb6 {[%emt 0:00:00]} 57. Kb4 {[%emt 0:00:00]} Rxa7 {[%emt 0:00:00]} 58. Rxa7 {[%emt 0:00:00]} Kxa7 {[%emt 0:00:00] Weighted Error Value: White=0.12 (very precise) /Black=0.05 (flawless) .  Missed win:     	White=1     	---        Mistake:       	White=1     	---        Inaccurate:     	---       	Black=2      OK:         	White=20    	Black=21     Best:        	White=3     	Black=4      Strong:       	---       	Black=1} 1/2-1/2

[Event "Fagernes Chess GM-Swiss 2024"]
[Site "Fagernes"]
[Date "2024.03.25"]
[Round "2"]
[White "Blomqvist, Erik"]
[Black "Shehzad, Shazil"]
[Result "1-0"]
[ECO "C84"]
[WhiteElo "2511"]
[BlackElo "2301"]
[Annotator "TA"]
[PlyCount "77"]
[EventDate "2024.03.25"]
[EventType "swiss"]
[EventCountry "NOR"]
[SourceTitle "playchess.com"]
[Source "ChessBase"]
[SourceQuality "1"]
[TimeControl "40/6000+30:2400+30"]

{[%evp 13,77,0,19,0,0,0,0,14,0,0,12,3,20,23,28,14,28,30,31,31,29,20,52,19,12,0,30,14,39,36,45,19,27,27,57,68,66,71,70,0,0,0,0,0,67,81,85,95,125,111,130,84,141,134,137,127,128,129,247,49,45,47,688,696,970,962]} 1. e4 {[%emt 0:00:05]} e5 {[%emt 0:03:09]} 2. Nf3 {[%emt 0:00:15]} Nc6 {[%emt 0:00:04]} 3. Bb5 {[%emt 0:00:09][%cal Bf1b5,Bb5a4,Ba4b3][%mdl 32]} a6 {[%emt 0:00:07]} 4. Ba4 {[%emt 0:00:16]} Nf6 {[%emt 0:00:06]} 5. O-O {[%emt 0:00:15]} Be7 {[%emt 0:00:07]} 6. Nc3 {[%emt 0:02:07]} b5 {[%emt 0:02:17]} 7. Bb3 {[%emt 0:00:27]} d6 {[%emt 0:03:23]} 8. a3 {[%emt 0:01:23]} Bg4 {[%emt 0:05:16]} 9. h3 {[%emt 0:00:21]} Bxf3 {[%emt 0:00:51]} 10. Qxf3 {[%emt 0:00:10] Die Stellung ist ausgeglichen.} Nd4 {[%emt 0:00:55] Wehrt Ne2 ab} 11. Qd1 {[%emt 0:00:06]} Nxb3 {[%emt 0:01:17]} 12. cxb3 {[%emt 0:00:07]} O-O {[%emt 0:10:17]} 13. d4 {[%emt 0:00:20]} c6 {[%emt 0:05:11]} 14. Be3 {[%emt 0:00:59]} a5 {[%emt 0:02:07]} 15. dxe5 {[%emt 0:02:19]} dxe5 {[%emt 0:00:50]} 16. Qc2 {[%emt 0:00:28]} Qd7 {[%emt 0:04:02]} 17. Rfd1 {[%emt 0:05:39]} Qb7 {[%emt 0:02:17]} 18. Ne2 {[%emt 0:07:58]} Rfc8 {[%emt 0:18:21]} 19. Rac1 {[%emt 0:06:17]} c5 {[%emt 0:09:59]} 20. Bg5 {[%emt 0:14:00]} h6 {[%emt 0:04:53]} 21. Bxf6 {[%emt 0:07:33]} Bxf6 {[%emt 0:00:18]} 22. Rd5 {[%emt 0:09:29][%cal Oc2b1]} c4 {[%emt 0:04:16]} 23. Rcd1 {[%emt 0:03:49]} Rc7 {[%emt 0:06:58]} 24. Nc3 {[%emt 0:04:35]} cxb3 {[%emt 0:06:42]} 25. Qxb3 {[%emt 0:00:08]} b4 {[%emt 0:00:50]} 26. Nb5 {[%emt 0:02:08]} ({Günstiger ist} 26. Rb5 $14 Qa6 (26... Rxc3 27. Qa4 $16) 27. Nd5 (27. axb4 $2 Rxc3 28. Qxc3 Qxb5 $19)) 26... bxa3 $11 {[%emt 0:01:10]} 27. bxa3 {[%emt 0:03:58]} a4 {[%emt 0:01:12]} 28. Qd3 {[%emt 0:00:49]} Re7 {[%emt 0:01:00]} ({Vorzuziehen ist} 28... Rc6 $11) 29. Rc1 $14 {[%emt 0:06:35][%cal Bd1c1,Bc1c4,Bc4c6][%mdl 32]} Kh7 {[%emt 0:01:59]} 30. Rc4 {[%emt 0:04:51]} Qb6 {[%emt 0:03:15]} 31. Qc2 {[%emt 0:05:24]} Bh4 {[%emt 0:03:13]} 32. Kf1 {[%emt 0:05:26]} (32. Rxa4 $2 {ist das falsche Schlagen.} Rxa4 (32... Qxf2+ $2 33. Qxf2 Bxf2+ 34. Kxf2 $19) 33. Qc5 Qxc5 34. Rxc5 Rxe4 $19) (32. Rc6 $142 Qb8 (32... Bxf2+ $2 33. Kf1 $18) 33. g3) 32... Ra5 {[%emt 0:04:28]} (32... Re6 $142 33. g3 (33. Rxa4 $2 {verliert.} Rc6 $19) 33... Bd8) 33. Rc6 $16 {[%emt 0:10:31]} Qb8 {[%emt 0:02:40] Schwarz ist schwach auf den weissen Feldern} 34. Nd6 {[%emt 0:04:10] Weiß steht aktiver.} Rea7 {[%emt 0:01:37]} 35. g3 $36 {[%emt 0:02:01][%mdl 2048] Weiss bestimmt, wo es lang geht.} Bf6 {[%emt 0:01:41] [#]} (35... Bd8 $16) 36. Nxf7 $2 {[%emt 0:01:48]} Qb3 $14 {[%emt 0:00:51] Droht ...Qxc2 und aus.} 37. Nd6 {[%emt 0:00:16] Schwarz muss nun Qe2 beachten.} Qxa3 $2 {[%emt 0:00:45][%mdl 8192]} (37... Rxd5 $14 38. exd5+ Qxc2 39. Rxc2 Rd7) 38. Nc4 $1 $18 {[%emt 0:00:33][%csl LRa3,LRa5]} Qa1+ {[%emt 0:00:11]} 39. Rd1 {[%emt 0:00:12] Gewichteter Fehlerwert: Weiß=0.21 (präzise) /Schwarz=0.43.  Verlustzug:     	---       	Schwarz=1     Gewinn verpasst:   	Weiß=1     	---        Fehler:       	Weiß=2     	Schwarz=3     Ungenau:       	Weiß=2     	Schwarz=5     OK:         	Weiß=9     	Schwarz=10    Bester:       	Weiß=6     	Schwarz=3} 1-0

[Event "Fagernes Chess GM-Swiss 2024"]
[Site "Fagernes"]
[Date "2024.03.25"]
[Round "2"]
[White "Petkov, Momchil"]
[Black "Kreken, Eivind Grunt"]
[Result "1/2-1/2"]
[ECO "D26"]
[WhiteElo "2500"]
[BlackElo "2215"]
[Annotator "TA"]
[PlyCount "78"]
[EventDate "2024.03.25"]
[EventType "swiss"]
[EventCountry "NOR"]
[SourceTitle "playchess.com"]
[Source "ChessBase"]
[SourceQuality "1"]
[TimeControl "40/6000+30:2400+30"]

{[%evp 11,78,6,8,0,0,3,13,0,3,8,29,-12,-14,-19,-28,-20,-9,-38,-31,-33,-25,-30,-25,-31,-30,-30,-30,-31,-31,-31,-31,-27,-25,-25,-19,-19,-23,-41,-24,-30,-23,-23,0,0,0,0,0,0,0,0,0,0,0,0,0,0,0,0,0,0,0,0,0,0,0,0,0,0,0]} 1. d4 {[%emt 0:00:11]} d5 {[%emt 0:00:43]} 2. c4 {[%emt 0:00:17]} e6 {[%emt 0:00:29]} 3. Nf3 {[%emt 0:00:14]} Nf6 {[%emt 0:00:25]} 4. Nc3 {[%emt 0:00:19]} c5 {[%emt 0:02:38]} 5. e3 {[%emt 0:00:34][%cal Be2e3,Be3e4,Be4e5,Be5f6][%mdl 32]} dxc4 {[%emt 0:01:07]} 6. Bxc4 {[%emt 0:00:15]} a6 {[%emt 0:00:35]} 7. e4 {[%emt 0:05:29]} b5 {[%emt 0:08:17] [#] ...cxd4 wäre nun fies.} 8. Bb3 {[%emt 0:00:14]} Bb7 {[%emt 0:04:25]} 9. e5 {[%emt 0:09:01]} cxd4 {[%emt 0:12:00]} 10. Nxd4 {[%emt 0:05:59]} Bc5 {[%emt 0:13:24]} 11. Be3 {[%emt 0:11:46]} (11. Nxe6 {scheint wilder zu sein.} Qxd1+ 12. Kxd1 fxe6 13. exf6 Nc6 14. fxg7 Rd8+ 15. Ke1) 11... Bxd4 {[%emt 0:02:37]} 12. Qxd4 {[%emt 0:41:57]} Qxd4 {[%emt 0:01:59]} 13. Bxd4 {[%emt 0:01:13]} Nc6 {[%emt 0:01:24]} 14. exf6 {[%emt 0:05:07]} Nxd4 {[%emt 0:00:14]} 15. fxg7 {[%emt 0:00:08]} Rg8 {[%emt 0:00:35]} 16. f3 $1 {[%emt 0:00:05]} Rd8 {[%emt 0:11:37]} 17. Rd1 {[%emt 0:01:20]} Rxg7 {[%emt 0:01:39]} 18. Kf2 {[%emt 0:00:07]} Rg5 {[%emt 0:02:16] Pariert Bd5.} 19. Rhe1 {[%emt 0:06:02]} Rc5 {[%emt 0:03:25]} 20. Ne4 {[%emt 0:03:45]} Bxe4 {[%emt 0:15:08]} 21. Rxe4 {[%emt 0:00:06]} Nxb3 {[%emt 0:00:14]} 22. Rxd8+ {[%emt 0:00:05]} Kxd8 {[%emt 0:00:05]} 23. axb3 $15 {[%emt 0:00:05][%mdl 4096] Endspiel. KR-KR} Ke7 {[%emt 0:01:42]} 24. Re2 {[%emt 0:01:57]} a5 {[%emt 0:02:57]} 25. g4 {[%emt 0:00:55]} h6 {[%emt 0:04:28]} 26. Rd2 {[%emt 0:01:01]} a4 {[%emt 0:01:50]} 27. bxa4 {[%emt 0:01:07] Die Stellung ist ausgeglichen.} bxa4 {[%emt 0:00:02]} 28. Kg3 {[%emt 0:01:05]} Kf6 {[%emt 0:01:27]} 29. Rd4 {[%emt 0:00:22]} Rb5 {[%emt 0:00:12]} 30. Rxa4 {[%emt 0:00:06]} Rxb2 {[%emt 0:00:05]} 31. Ra8 {[%emt 0:00:36]} Kg6 {[%emt 0:00:35]} 32. h4 {[%emt 0:00:12]} Rc2 {[%emt 0:01:45]} 33. h5+ {[%emt 0:00:20]} Kg7 {[%emt 0:00:13]} 34. Ra4 {[%emt 0:00:20]} Rb2 {[%emt 0:02:00]} 35. Ra3 {[%emt 0:00:36]} Kf6 {[%emt 0:01:14]} 36. f4 {[%emt 0:00:10]} Rb4 {[%emt 0:02:20]} 37. Kf3 {[%emt 0:00:11]} Rc4 {[%emt 0:01:25]} 38. Ra5 {[%emt 0:00:32]} Rc3+ {[%emt 0:00:29]} 39. Kf2 {[%emt 0:00:06]} Rc2+ {[%emt 0:00:06] Gewichteter Fehlerwert: Weiß=0.06 (makellos) /Schwarz=0.03 (makellos) .  Ungenau:       	Weiß=2     	---        OK:         	Weiß=13    	Schwarz=16    Bester:       	Weiß=1     	Schwarz=1     Stark:        	Weiß=1     	---} 1/2-1/2

[Event "Fagernes Chess GM-Swiss 2024"]
[Site "Fagernes"]
[Date "2024.03.25"]
[Round "2"]
[White "Mitusov, Semen"]
[Black "Aniruddh Chatterjee"]
[Result "1/2-1/2"]
[ECO "B19"]
[WhiteElo "2487"]
[BlackElo "2182"]
[Annotator "TA"]
[PlyCount "78"]
[EventDate "2024.03.25"]
[EventType "swiss"]
[EventCountry "NOR"]
[SourceTitle "playchess.com"]
[Source "ChessBase"]
[SourceQuality "1"]
[TimeControl "40/6000+30:2400+30"]

{[%evp 26,78,32,28,31,5,13,0,22,0,41,0,0,0,0,0,0,0,0,0,0,0,22,0,57,18,47,39,162,162,164,145,145,16,58,59,67,54,55,0,0,0,0,-26,-18,-25,-36,-35,-33,-29,-22,-25,-9,-23,0]} 1. e4 {[%emt 0:02:48]} c6 {[%emt 0:00:26]} 2. d4 {[%emt 0:00:32]} d5 {[%emt 0:00:06]} 3. Nc3 {[%emt 0:00:04]} dxe4 {[%emt 0:00:07]} 4. Nxe4 {[%emt 0:00:03]} Bf5 {[%emt 0:00:08]} 5. Ng3 {[%emt 0:00:34]} Bg6 {[%emt 0:00:11]} 6. h4 {[%emt 0:00:25][%cal Bh2h4,Bh4h5][%mdl 32]} h6 {[%emt 0:00:08]} 7. Nf3 {[%emt 0:00:04]} Nd7 {[%emt 0:00:07]} 8. h5 {[%emt 0:00:23]} Bh7 {[%emt 0:00:10]} 9. Bd3 {[%emt 0:00:09]} Bxd3 {[%emt 0:00:08]} 10. Qxd3 {[%emt 0:00:05]} e6 {[%emt 0:00:13]} 11. Bd2 {[%emt 0:00:55]} Ngf6 {[%emt 0:00:10]} 12. O-O-O {[%emt 0:00:22]} Be7 {[%emt 0:00:09]} 13. Kb1 {[%emt 0:01:27]} O-O {[%emt 0:00:10]} 14. Ne4 {[%emt 0:00:30]} c5 {[%emt 0:00:11]} 15. Nxf6+ {[%emt 0:11:52]} Nxf6 {[%emt 0:01:12] [#]} 16. g4 $1 {[%emt 0:00:24]} Nxg4 {[%emt 0:14:46] The position is equal.} 17. Qe2 {[%emt 0:01:12] Strongly threatening Rhg1.} cxd4 {[%emt 0:12:09][%cal Od4d3]} 18. Rdg1 {[%emt 0:01:06]} d3 {[%emt 0:02:49]} 19. cxd3 {[%emt 0:17:11]} f5 {[%emt 0:00:49]} 20. Qxe6+ {[%emt 0:02:08]} Kh8 {[%emt 0:02:03]} 21. d4 {[%emt 0:08:27]} Qd6 {[%emt 0:03:27]} 22. Qxd6 {[%emt 0:09:29]} Bxd6 {[%emt 0:00:13]} 23. Rg2 {[%emt 0:00:08]} Be7 {[%emt 0:15:47]} 24. Bc3 {[%emt 0:07:17]} Rfd8 {[%emt 0:05:09]} (24... Kh7 $11) 25. Ne5 {[%emt 0:16:02] Ng6+ would now be deadly.} Kh7 {[%emt 0:01:10]} (25... Nxe5 26. dxe5 Bg5 27. f4 Bxf4 28. Rf1 $16) 26. Re1 {[%emt 0:09:11]} Bh4 {[%emt 0:14:20]} (26... Nxe5 $14 27. dxe5 (27. Rxe5 Bf6 $16) 27... Bg5) 27. Nxg4 $18 {[%emt 0:01:43]} fxg4 {[%emt 0:00:07] [#]} 28. d5 $1 {[%emt 0:02:59]} ({Much less strong is} 28. Rxg4 $6 Bf6 $11) 28... Rd7 {[%emt 0:07:55]} 29. Re4 {[%emt 0:02:23]} ({Better is} 29. Rxg4 $16 Bxf2 30. Re6) 29... Rf8 {[%emt 0:01:36][%cal Oh4f6]} 30. Rgxg4 {[%emt 0:04:10]} ({Of course not} 30. Rexg4 Bf6 $11) 30... Bg5 {[%emt 0:07:34]} 31. f4 {[%emt 0:01:27]} Bf6 {[%emt 0:00:06]} 32. Bb4 {[%emt 0:02:39]} (32. Be5 $1 $14) 32... Rc8 $1 $11 {[%emt 0:01:52]} 33. d6 {[%emt 0:00:29]} a5 $1 {[%emt 0:00:14]} 34. Bc3 {[%emt 0:02:31]} Rxd6 {[%emt 0:01:02]} 35. Rg1 {[%emt 0:01:03]} Bxc3 {[%emt 0:00:52]} 36. bxc3 {[%emt 0:00:01]} Rd7 {[%emt 0:00:27] Against Re7} 37. Kc2 {[%emt 0:01:32]} Rc5 {[%emt 0:03:06]} 38. Re5 {[%emt 0:00:31]} Rdc7 {[%emt 0:00:39]} 39. Rg3 {[%emt 0:00:39]} Kg8 {[%emt 0:03:14] Weighted Error Value: White=0.15 (very precise) /Black=0.22 (precise) .  Mistake:       	White=2     	Black=2      Inaccurate:     	White=4     	Black=3      OK:         	White=11    	Black=9      Best:        	White=2     	---        Strong:       	White=1     	Black=2} 1/2-1/2

[Event "Fagernes Chess GM-Swiss 2024"]
[Site "Fagernes"]
[Date "2024.03.25"]
[Round "2"]
[White "Sokolovsky, Yahli"]
[Black "Haug, Havard"]
[Result "1-0"]
[ECO "B15"]
[WhiteElo "2475"]
[BlackElo "2341"]
[Annotator "TA"]
[PlyCount "125"]
[EventDate "2024.03.25"]
[EventType "swiss"]
[EventCountry "NOR"]
[SourceTitle "playchess.com"]
[Source "ChessBase"]
[SourceQuality "1"]
[TimeControl "40/6000+30:2400+30"]

{[%evp 60,125,78,66,67,75,106,116,136,30,29,31,34,14,139,147,145,139,202,202,246,172,172,172,172,172,172,106,111,100,99,99,107,107,106,106,114,107,301,301,301,301,433,396,437,437,416,298,437,413,824,820,775,741,726,688,660,650,622,638,585,434,29982,29983,29983,29984,29984,29984]} 1. e4 {[%emt 0:00:03]} c6 {[%emt 0:01:13]} 2. d4 {[%emt 0:00:05]} d5 {[%emt 0:00:18]} 3. Nd2 {[%emt 0:00:06]} dxe4 {[%emt 0:00:16]} 4. Nxe4 {[%emt 0:00:06]} Nf6 {[%emt 0:00:06]} 5. Nxf6+ {[%emt 0:00:08]} exf6 {[%emt 0:00:13]} 6. c3 {[%emt 0:00:08]} Bd6 {[%emt 0:00:09]} 7. Bd3 {[%emt 0:00:05]} O-O {[%emt 0:00:20]} 8. Qc2 {[%emt 0:00:04]} Re8+ {[%emt 0:00:07]} 9. Ne2 {[%emt 0:00:05]} h5 {[%emt 0:00:10]} 10. Be3 {[%emt 0:00:32]} Nd7 {[%emt 0:00:24]} 11. c4 {[%emt 0:00:07]} Nf8 {[%emt 0:06:14]} 12. O-O-O {[%emt 0:00:07]} Be6 {[%emt 0:03:23]} 13. a3 {[%emt 0:00:06]} a5 {[%emt 0:10:20]} 14. Nc3 {[%emt 0:06:50]} Qc7 {[%emt 0:08:35]} 15. g3 {[%emt 0:10:53]} Bg4 {[%emt 0:10:50]} 16. Be2 {[%emt 0:04:17]} Qd7 {[%emt 0:02:15]} 17. c5 {[%emt 0:11:47]} Bb8 {[%emt 0:03:17]} 18. d5 {[%emt 0:04:08]} Bxe2 {[%emt 0:02:18]} 19. Qxe2 {[%emt 0:00:06]} Qf5 {[%emt 0:01:06]} 20. Qd3 {[%emt 0:18:01]} Qf3 {[%emt 0:05:00]} 21. Bd4 {[%emt 0:11:36]} Qxd3 {[%emt 0:00:47]} 22. Rxd3 {[%emt 0:00:03]} cxd5 {[%emt 0:01:40]} 23. Be3 {[%emt 0:01:50]} d4 {[%emt 0:05:54]} 24. Rxd4 {[%emt 0:02:08]} Be5 {[%emt 0:00:18]} 25. Rc4 {[%emt 0:01:24]} Bxc3 {[%emt 0:09:10]} 26. Rxc3 {[%emt 0:00:38]} Nd7 {[%emt 0:02:10]} 27. Rd1 {[%emt 0:03:05]} Ne5 {[%emt 0:01:39]} 28. h3 {[%emt 0:00:31]} a4 {[%emt 0:02:05]} 29. Rd4 {[%emt 0:08:48]} Red8 {[%emt 0:01:54]} 30. Kc2 {[%emt 0:03:37]} Rxd4 {[%emt 0:06:19]} 31. Bxd4 {[%emt 0:00:01]} Nc6 {[%emt 0:00:28]} 32. Rc4 {[%emt 0:06:00]} Kf8 {[%emt 0:00:28]} 33. Bc3 $1 {[%emt 0:00:42]} Re8 {[%emt 0:11:48]} 34. Kd2 {[%emt 0:01:15]} (34. Rxa4 Re2+ 35. Kb3 Rxf2 $17) (34. Rf4 $16) 34... Rd8+ $11 {[%emt 0:00:24]} 35. Ke3 {[%emt 0:01:22]} Re8+ {[%emt 0:00:05]} 36. Re4 {[%emt 0:02:12]} Rxe4+ {[%emt 0:03:10]} (36... Nd8 $11) 37. Kxe4 $16 {[%emt 0:00:03]} Ke7 {[%emt 0:00:08]} 38. Kd5 {[%emt 0:00:57]} g5 {[%emt 0:00:59]} (38... Kd7 $16 {was worth a try.}) 39. Kc4 $1 $18 {[%emt 0:01:37]} Ne5+ {[%emt 0:01:05]} 40. Bxe5 {[%emt 0:13:55]} fxe5 {[%emt 0:00:01]} 41. Kb5 {[%emt 0:06:19]} f5 {[%emt 0:04:46] [#]} 42. Kb6 $1 {[%emt 0:02:04]} (42. Kxa4 e4 43. Kb5 f4 44. gxf4 g4 45. hxg4 h4 $19) 42... f4 {[%emt 0:00:16] [#]} 43. Kxb7 {[%emt 0:03:04]} ({White should play} 43. gxf4 $1 $18 g4 44. hxg4 (44. fxe5 $2 gxh3 45. f4 h2 $19)) 43... fxg3 $16 {[%emt 0:03:59]} 44. fxg3 {[%emt 0:00:03]} e4 {[%emt 0:00:06]} 45. c6 {[%emt 0:00:07]} e3 {[%emt 0:00:01]} 46. c7 {[%emt 0:00:07]} e2 {[%emt 0:00:02]} 47. c8=Q {[%emt 0:00:09]} (47. c8=B e1=Q (47... e1=B 48. g4 $11) 48. h4 Qxg3 $19) 47... e1=Q {[%emt 0:00:02]} 48. Qc5+ {[%emt 0:00:51]} Kf7 $2 {[%emt 0:01:44]} (48... Kf6 $16) 49. Qf5+ $18 {[%emt 0:13:27]} (49. Qxg5 $6 Qe2 $18) 49... Ke8 {[%emt 0:00:13]} 50. Qxg5 {[%emt 0:01:28]} Qh1+ {[%emt 0:02:12]} (50... Kf8 {might work better.} 51. Qxh5 Qe7+ 52. Ka6 (52. Kb6 Qf6+ 53. Ka5 Qxb2 $18) 52... Qf6+ 53. Ka5 Qxb2 54. Qf3+ (54. Kxa4 Qd4+ 55. Kb5 Qd3+ 56. Kc6 Qa6+ 57. Kc7 Qa7+ 58. Kd8 Qe7+ 59. Kc8 Qe6+ 60. Kc7 Qe7+ 61. Kc6 Qe6+ 62. Kc7 Qe7+ 63. Kb8 Qd6+ 64. Kb7 Qe7+ 65. Kc6 Qe6+ 66. Kc5 Qe3+ 67. Kc4 Qe4+ 68. Kc3 Qe3+ 69. Kc2 Qf2+ 70. Kb3 Qxg3+ 71. Kc4 Qxa3 $11) 54... Kg7 55. Kxa4 Qb6) 51. Kb6 $18 {[%emt 0:00:28]} Qxh3 {[%emt 0:00:07]} 52. Ka5 {[%emt 0:00:56]} Qh1 {[%emt 0:01:15]} 53. Qe5+ {[%emt 0:01:08]} (53. Kxa4 Kf7 54. Qf5+ Kg8) 53... Kf7 {[%emt 0:00:52]} (53... Kd7 $142 54. Kxa4 Kc8 55. Qc5+ Kd7) 54. Kxa4 $18 {[%emt 0:00:35]} Qd1+ {[%emt 0:00:17]} (54... Kg6 $142 55. Qd6+ Kf7 56. Qd7+ Kf8) 55. Kb5 $18 {[%emt 0:01:37]} Qb3+ {[%emt 0:00:39]} 56. Kc5 {[%emt 0:00:19]} Kg6 {[%emt 0:00:10]} 57. Qd6+ {[%emt 0:03:06]} Kh7 {[%emt 0:00:33]} 58. Qc7+ {[%emt 0:00:23]} Kg8 {[%emt 0:00:44]} 59. Qe5 {[%emt 0:01:39]} Qc2+ {[%emt 0:00:49]} 60. Kd6 {[%emt 0:00:19]} Qa4 {[%emt 0:01:22]} (60... Qf2 $18 61. b4 (61. Qxh5 Qb6+ 62. Ke7 Qc7+ 63. Ke6 Qc6+ 64. Kf5 Qd5+ 65. Kg4 Qd1+ 66. Kh4 Qh1+ 67. Kg5 Qc1+ 68. Kf5 Qc2+ 69. Kf4 Qc4+ 70. Kf3 Qb3+ 71. Kg2 Qxb2+ 72. Kh3 Qxa3 $11) (61. Qg5+ Kf8 $18) 61... Qb6+ 62. Ke7 Qb7+ 63. Kf6 Qg7+ 64. Ke6 Qf7+ 65. Kd6 Qf2) 61. Qe6+ {[%emt 0:01:19]} ({Weaker is} 61. Qxh5 Qa6+ 62. Kc7 Qa7+ 63. Kc6 Qa6+ 64. Kd7 Qb7+ 65. Ke6 Qa6+ 66. Ke7 Qb7+ 67. Kd6 Qa6+ 68. Ke7 (68. Kc7 Qa7+ 69. Kc6 Qa6+ 70. Kc7 $11) 68... Qb7+ 69. Kd6 Qb6+ 70. Kd7 Qb7+ 71. Kd6 $11) 61... Kh8 {[%emt 0:00:59]} 62. Qc8+ {[%emt 0:00:05]} Kg7 {[%emt 0:00:04]} 63. Qd7+ {[%emt 0:00:12]} 1-0